fUSD/lending_fUSD_20240201
["ID","MTS","AMOUNT","RATE_DAILY","PERIOD"]
[313126425,1706779839320,-624.83,0.00029587,2]
[313126426,1706779839329,-629.14097296,0.00029587,2]
[313126427,1706779839337,-795.63,0.00029587,2]
[313126428,1706779839346,-500.0,0.00029587,2]
[313126429,1706779839355,-500.0,0.00029587,2]
[313126430,1706779839365,-816.05,0.00029587,2]
[313126431,1706779839374,-557.84,0.00029587,2]
[313126432,1706779839385,-706.15,0.00029587,2]
[313126433,1706779839394,-500.0,0.00029587,2]
[313126434,1706779839404,-500.0,0.00029587,2]
[313126435,1706779839413,-500.0,0.00029587,2]
[313126436,1706779839422,-500.0,0.00029588,2]
[313126437,1706779839432,-500.0,0.00029588,2]
[313126438,1706779839441,-500.0,0.00029588,2]
[313126439,1706779839450,-500.0,0.00029588,2]
[313126440,1706779839460,-500.0,0.00029588,2]
[313126441,1706779839469,-500.0,0.00029588,2]
[313126442,1706779839478,-888.7,0.00029588,2]
[313126443,1706779839487,-500.0,0.00029588,2]
[313126444,1706779839497,-500.0,0.00029588,2]
[313126445,1706779839505,-8305.95,0.00029588,2]
[313126446,1706779839514,-651.09,0.00029588,2]
[313126447,1706779839523,-500.0,0.00029588,2]
[313126448,1706779839533,-1275.47,0.00029588,2]
[313126449,1706779839542,-2320.53,0.00029588,2]
[313126450,1706779839551,-500.0,0.00029588,2]
[313126451,1706779839561,-500.0,0.00029588,2]
[313126452,1706779839570,-969.56,0.00029588,2]
[313126453,1706779839579,-500.0,0.00029588,2]
[313126454,1706779839589,-500.0,0.00029588,2]
[313126455,1706779839598,-500.0,0.00029588,2]
[313126456,1706779839607,-500.0,0.00029588,2]
[313126457,1706779839616,-500.0,0.00029588,2]
[313126458,1706779839626,-575.64,0.00029588,2]
[313126459,1706779839638,-616.28,0.00029589,2]
[313126460,1706779839648,-500.0,0.00029589,2]
[313126461,1706779839659,-987.61,0.00029589,2]
[313126462,1706779839669,-500.0,0.00029589,2]
[313126463,1706779839679,-500.0,0.00029589,2]
[313126464,1706779839688,-881.41,0.00029589,2]
[313126465,1706779839697,-200.0,0.00029895,3]
[313126466,1706779839706,-5633.68676721,0.0003,2]
[313126467,1706779839716,-200.0,0.00030089,3]
[313126468,1706779839725,-800.0,0.00030099,2]
[313126469,1706779839734,-521.05,0.00030134,2]
[313126470,1706779839743,-500.0,0.00030134,2]
[313126471,1706779839752,-500.0,0.00030135,2]
[313126472,1706779839761,-500.0,0.00030135,7]
[313126473,1706779839770,-500.0,0.00030135,2]
[313126474,1706779839780,-500.0,0.00030135,2]
[313126475,1706779839789,-500.0,0.00030135,2]
[313126476,1706779839798,-500.0,0.00030135,2]
[313126477,1706779839808,-627.91387089,0.00030135,2]
[313126478,1706779839817,-500.0,0.00030135,2]
[313126479,1706779839826,-606.44,0.00030135,2]
[313126480,1706779839836,-500.0,0.00030135,2]
[313126481,1706779839844,-500.0,0.00030135,2]
[313126482,1706779839853,-500.0,0.00030135,2]
[313126483,1706779839862,-1540.6,0.00030135,2]
[313126484,1706779839871,-595.6,0.00030135,2]
[313126485,1706779839889,-500.0,0.00030135,2]
[313126486,1706779839901,-1338.46,0.00030135,2]
[313126487,1706779839910,-500.0,0.00030135,2]
[313126488,1706779839920,-500.0,0.00030135,2]
[313126489,1706779839930,-500.0,0.00030135,2]
[313126490,1706779839940,-500.0,0.00030135,2]
[313126491,1706779839950,-500.0,0.00030135,2]
[313126492,1706779839960,-380.60763317,0.00030135,2]
[313126493,1706779839970,-500.0,0.00030135,2]
[313126494,1706779839979,-236.02061299,0.00030135,2]
[313126495,1706779839989,-500.0,0.00030135,2]
[313126496,1706779839997,-500.0,0.00030135,2]
[313126497,1706779840006,-500.0,0.00030135,2]
[313126498,1706779840016,-500.0,0.00030135,2]
[313126499,1706779840026,-2075.49,0.00030135,2]
[313126500,1706779840036,-717.31,0.00030135,2]
[313126501,1706779840045,-500.0,0.00030135,2]
[313126502,1706779840055,-585.86,0.00030135,2]
[313126503,1706779840065,-500.0,0.00030135,2]
[313126504,1706779840074,-500.0,0.00030135,2]
[313126505,1706779840084,-500.0,0.00030135,2]
[313126506,1706779840093,-593.9,0.00030135,2]
[313126507,1706779840103,-500.0,0.00030135,2]
[313126508,1706779840113,-500.0,0.00030135,2]
[313126509,1706779840123,-500.0,0.00030135,2]
[313126510,1706779840132,-500.0,0.00030135,2]
[313126511,1706779840141,-500.0,0.00030135,2]
[313126512,1706779840151,-500.0,0.00030135,2]
[313126513,1706779840162,-669.94,0.00030135,2]
[313126514,1706779840171,-581.18639811,0.00030135,2]
[313126515,1706779840181,-500.0,0.00030135,2]
[313126516,1706779840191,-925.75,0.00030135,2]
[313126517,1706779840200,-500.0,0.00030135,2]
[313126518,1706779840209,-1433.23,0.00030135,2]
[313126519,1706779840219,-500.0,0.00030135,2]
[313126520,1706779840228,-500.0,0.00030135,2]
[313126521,1706779840237,-500.0,0.00030135,2]
[313126522,1706779840247,-804.97,0.00030135,2]
[313126523,1706779840256,-500.0,0.00030135,2]
[313126524,1706779840266,-500.0,0.00030135,2]
[313126525,1706779840276,-500.0,0.00030135,2]
[313126526,1706779840285,-657.73,0.00030135,2]
[313126527,1706779840294,-500.0,0.00030135,2]
[313126528,1706779840304,-500.0,0.00030135,2]
[313126529,1706779840313,-500.0,0.00030135,2]
[313126530,1706779840323,-500.0,0.00030135,2]
[313126531,1706779840332,-1190.5,0.00030135,5]
[313126532,1706779840342,-500.0,0.00030135,2]
[313126533,1706779840351,-500.0,0.00030135,2]
[313126534,1706779840361,-500.0,0.00030135,2]
[313126535,1706779840370,-500.0,0.00030135,2]
[313126536,1706779840380,-500.0,0.00030135,2]
[313126537,1706779840389,-1208.78,0.00030135,2]
[313126538,1706779840398,-626.26224896,0.00030135,2]
[313126539,1706779840408,-500.0,0.00030135,2]
[313126540,1706779840417,-625.73,0.00030135,2]
[313126541,1706779840426,-1305.5,0.00030135,2]
[313126542,1706779840435,-500.0,0.00030135,2]
[313126543,1706779840444,-500.0,0.00030135,2]
[313126544,1706779840454,-500.0,0.00030135,2]
[313126545,1706779840464,-534.07,0.00030135,2]
[313126546,1706779840473,-500.0,0.00030135,2]
[313126547,1706779840483,-500.0,0.00030135,2]
[313126548,1706779840493,-500.0,0.00030135,2]
[313126549,1706779840502,-701.92,0.00030135,2]
[313126550,1706779840511,-500.0,0.00030135,2]
[313126551,1706779840521,-500.0,0.00030135,2]
[313126552,1706779840530,-500.0,0.00030135,2]
[313126553,1706779840541,-500.0,0.00030135,2]
[313126554,1706779840551,-500.0,0.00030135,2]
[313126555,1706779840562,-627.26,0.00030135,2]
[313126556,1706779840571,-500.0,0.00030135,2]
[313126557,1706779840581,-500.0,0.00030135,2]
[313126558,1706779840590,-986.24,0.00030135,2]
[313126559,1706779840599,-500.0,0.00030135,2]
[313126560,1706779840609,-762.1,0.00030135,2]
[313126561,1706779840619,-655.35,0.00030135,5]
[313126562,1706779840628,-500.0,0.00030135,2]
[313126563,1706779840642,-624.83,0.00030135,2]
[313126564,1706779840651,-795.63,0.00030135,2]
[313126565,1706779840661,-500.0,0.00030135,2]
[313126566,1706779840669,-500.0,0.00030135,2]
[313126567,1706779840682,-816.05,0.00030135,2]
[313126568,1706779840692,-557.84,0.00030135,2]
[313126569,1706779840700,-706.15,0.00030135,2]
[313126570,1706779840709,-500.0,0.00030135,2]
[313126571,1706779840718,-500.0,0.00030135,2]
[313126572,1706779840728,-500.0,0.00030135,2]
[313126573,1706779840737,-616.28,0.00030136,2]
[313126574,1706779840746,-500.0,0.00030136,2]
[313126575,1706779840755,-987.61,0.00030136,2]
[313126576,1706779840764,-500.0,0.00030136,2]
[313126577,1706779840773,-621.5204404,0.00030136,2]
[313126578,1706779840783,-500.0,0.00030136,2]
[313126579,1706779840793,-500.0,0.00030136,2]
[313126580,1706779840803,-500.0,0.00030136,2]
[313126581,1706779840812,-881.41,0.00030136,2]
[313126582,1706779840822,-500.0,0.00030136,2]
[313126583,1706779840831,-500.0,0.00030136,2]
[313126584,1706779840839,-500.0,0.00030136,2]
[313126585,1706779840848,-888.7,0.00030136,2]
[313126586,1706779840857,-500.0,0.00030136,2]
[313126587,1706779840866,-500.0,0.00030136,2]
[313126588,1706779840876,-8305.95,0.00030136,2]
[313126589,1706779840885,-651.09,0.00030136,2]
[313126590,1706779840894,-500.0,0.00030136,2]
[313126591,1706779840903,-1275.47,0.00030136,2]
[313126592,1706779840912,-2320.53,0.00030136,2]
[313126593,1706779840921,-500.0,0.00030136,2]
[313126594,1706779840931,-500.0,0.00030136,2]
[313126595,1706779840941,-969.56,0.00030136,2]
[313126596,1706779840950,-500.0,0.00030136,2]
[313126597,1706779840959,-500.0,0.00030136,2]
[313126598,1706779840968,-500.0,0.00030136,2]
[313126599,1706779840978,-500.0,0.00030136,2]
[313126600,1706779840987,-500.0,0.00030136,2]
[313126601,1706779840996,-575.64,0.00030136,2]
[313126602,1706779841008,-153.87,0.00030137,2]
[313126603,1706779841018,-500.0,0.00030292,2]
[313126604,1706779841029,-200.0,0.00030303,3]
[313126605,1706779841040,-800.0,0.00030303,2]
[313126606,1706779841051,-1000.0,0.00030389,2]
[313126607,1706779841068,-800.0,0.00030506,2]
[313126608,1706779841083,-521.05,0.00030682,2]
[313126609,1706779841096,-500.0,0.00030682,2]
[313126610,1706779841111,-500.0,0.00030683,2]
[313126611,1706779841124,-500.0,0.00030683,7]
[313126612,1706779841136,-413.54780262,0.00030683,2]
[313126613,1706779841147,-500.0,0.00030683,2]
[313126614,1706779841160,-500.0,0.00030683,2]
[313126615,1706779841174,-606.44,0.00030683,2]
[313126616,1706779841186,-500.0,0.00030683,2]
[313126617,1706779841199,-500.0,0.00030683,2]
[313126618,1706779841212,-500.0,0.00030683,2]
[313126619,1706779841225,-1540.6,0.00030683,2]
[313126620,1706779841238,-595.6,0.00030683,2]
[313126621,1706779841251,-500.0,0.00030683,2]
[313126622,1706779841261,-1338.46,0.00030683,2]
[313126623,1706779841271,-500.0,0.00030683,2]
[313126624,1706779841284,-500.0,0.00030683,2]
[313126625,1706779841296,-500.0,0.00030683,2]
[313126626,1706779841309,-500.0,0.00030683,2]
[313126627,1706779841322,-500.0,0.00030683,2]
[313126628,1706779841334,-500.0,0.00030683,2]
[313126629,1706779841346,-500.0,0.00030683,2]
[313126630,1706779841359,-2075.49,0.00030683,2]
[313126631,1706779841372,-717.31,0.00030683,2]
[313126632,1706779841384,-500.0,0.00030683,2]
[313126633,1706779841396,-585.86,0.00030683,2]
[313126634,1706779841408,-500.0,0.00030683,2]
[313126635,1706779841421,-500.0,0.00030683,2]
[313126636,1706779841432,-500.0,0.00030683,2]
[313126637,1706779841444,-593.9,0.00030683,2]
[313126638,1706779841455,-500.0,0.00030683,2]
[313126639,1706779841468,-500.0,0.00030683,2]
[313126640,1706779841478,-500.0,0.00030683,2]
[313126641,1706779841490,-500.0,0.00030683,2]
[313126642,1706779841502,-669.94,0.00030683,2]
[313126643,1706779841515,-500.0,0.00030683,2]
[313126644,1706779841528,-925.75,0.00030683,2]
[313126645,1706779841539,-500.0,0.00030683,2]
[313126646,1706779841549,-1433.23,0.00030683,2]
[313126647,1706779841559,-500.0,0.00030683,2]
[313126648,1706779841572,-500.0,0.00030683,2]
[313126649,1706779841583,-804.97,0.00030683,2]
[313126650,1706779841593,-500.0,0.00030683,2]
[313126651,1706779841605,-500.0,0.00030683,2]
[313126652,1706779841618,-657.73,0.00030683,2]
[313126653,1706779841630,-500.0,0.00030683,2]
[313126654,1706779841647,-500.0,0.00030683,2]
[313126655,1706779841657,-500.0,0.00030683,2]
[313126656,1706779841667,-500.0,0.00030683,2]
[313126657,1706779841678,-1190.5,0.00030683,5]
[313126658,1706779841689,-500.0,0.00030683,2]
[313126659,1706779841701,-500.0,0.00030683,2]
[313126660,1706779841714,-500.0,0.00030683,2]
[313126661,1706779841722,-500.0,0.00030683,2]
[313126662,1706779841732,-339.57076452,0.00030683,2]
[313126663,1706779841743,-1208.78,0.00030683,2]
[313126664,1706779841754,-500.0,0.00030683,2]
[313126665,1706779841764,-625.73,0.00030683,2]
[313126666,1706779841778,-1305.5,0.00030683,2]
[313126667,1706779841789,-500.0,0.00030683,2]
[313126668,1706779841800,-500.0,0.00030683,2]
[313126669,1706779841811,-500.0,0.00030683,2]
[313126670,1706779841821,-534.07,0.00030683,2]
[313126671,1706779841831,-500.0,0.00030683,2]
[313126672,1706779841842,-500.0,0.00030683,2]
[313126673,1706779841853,-500.0,0.00030683,2]
[313126674,1706779841864,-701.92,0.00030683,2]
[313126675,1706779841875,-500.0,0.00030683,2]
[313126676,1706779841885,-500.0,0.00030683,2]
[313126677,1706779841896,-544.09512389,0.00030683,2]
[313126678,1706779841907,-500.0,0.00030683,2]
[313126679,1706779841920,-627.26,0.00030683,2]
[313126680,1706779841931,-500.0,0.00030683,2]
[313126681,1706779841942,-500.0,0.00030683,2]
[313126682,1706779841953,-986.24,0.00030683,2]
[313126683,1706779841964,-500.0,0.00030683,2]
[313126684,1706779841975,-762.1,0.00030683,2]
[313126685,1706779841987,-655.35,0.00030683,5]
[313126686,1706779841997,-624.83,0.00030683,2]
[313126687,1706779842009,-795.63,0.00030683,2]
[313126688,1706779842019,-500.0,0.00030683,2]
[313126689,1706779842030,-500.0,0.00030683,2]
[313126690,1706779842041,-816.05,0.00030683,2]
[313126691,1706779842052,-557.84,0.00030683,2]
[313126692,1706779842063,-706.15,0.00030683,2]
[313126693,1706779842073,-500.0,0.00030683,2]
[313126694,1706779842084,-500.0,0.00030683,2]
[313126695,1706779842094,-500.0,0.00030683,2]
[313126696,1706779842105,-616.28,0.00030684,2]
[313126697,1706779842115,-500.0,0.00030684,2]
[313126698,1706779842126,-987.61,0.00030684,2]
[313126699,1706779842137,-500.0,0.00030684,2]
[313126700,1706779842148,-500.0,0.00030684,2]
[313126701,1706779842159,-500.0,0.00030684,2]
[313126702,1706779842170,-500.0,0.00030684,2]
[313126703,1706779842180,-881.41,0.00030684,2]
[313126704,1706779842191,-354.95643399,0.00030684,2]
[313126705,1706779842202,-500.0,0.00030684,2]
[313126706,1706779842213,-500.0,0.00030684,2]
[313126707,1706779842223,-888.7,0.00030684,2]
[313126708,1706779842233,-500.0,0.00030684,2]
[313126709,1706779842243,-8305.95,0.00030684,2]
[313126710,1706779842254,-651.09,0.00030684,2]
[313126711,1706779842264,-500.0,0.00030684,2]
[313126712,1706779842275,-1275.47,0.00030684,2]
[313126713,1706779842285,-2320.53,0.00030684,2]
[313126714,1706779842296,-500.0,0.00030684,2]
[313126715,1706779842306,-500.0,0.00030684,2]
[313126716,1706779842317,-969.56,0.00030684,2]
[313126717,1706779842326,-500.0,0.00030684,2]
[313126718,1706779842337,-500.0,0.00030684,2]
[313126719,1706779842347,-500.0,0.00030684,2]
[313126720,1706779842357,-500.0,0.00030684,2]
[313126721,1706779842368,-157.43797981,0.00030684,2]
[313126722,1706779842379,-575.64,0.00030684,2]
[313126723,1706779842389,-150.0,0.00030685,2]
[313126724,1706779842400,-200.0,0.00030709,3]
[313126725,1706779842410,-800.0,0.00030709,2]
[313126726,1706779842420,-200.0,0.00030709,3]
[313126727,1706779842430,-200.0,0.0003071,2]
[313126728,1706779842441,-728.56882215,0.00030741,5]
[313126729,1706779842452,-10000.0,0.0003075,2]
[313126730,1706779842462,-500.0,0.00030765,2]
[313126731,1706779842473,-200.0,0.00030783,2]
[313126732,1706779842483,-400.0,0.000308,11]
[313126733,1706779842493,-1000.0,0.00030803,2]
[313126734,1706779842504,-1000.0,0.00030803,2]
[313126735,1706779842514,-1000.0,0.00030803,2]
[313126736,1706779842524,-1000.0,0.00030803,2]
[313126737,1706779842536,-1000.0,0.00030803,2]
[313126738,1706779842546,-159.8533,0.00030803,2]
[313126739,1706779842556,-500.0,0.00030803,2]
[313126740,1706779842567,-500.0,0.00030803,2]
[313126741,1706779842577,-500.0,0.00030803,2]
[313126742,1706779842588,-500.0,0.00030803,2]
[313126743,1706779842598,-500.0,0.00030803,2]
[313126744,1706779842609,-500.0,0.00030803,2]
[313126745,1706779842619,-500.0,0.00030803,2]
[313126746,1706779842632,-500.0,0.00030803,2]
[313126747,1706779842642,-500.0,0.00030803,2]
[313126748,1706779842653,-500.0,0.00030803,2]
[313126749,1706779842663,-500.0,0.00030803,2]
[313126750,1706779842674,-500.0,0.00030803,2]
[313126751,1706779842685,-500.0,0.00030803,2]
[313126752,1706779842695,-500.0,0.00030803,2]
[313126753,1706779842707,-500.0,0.00030803,2]
[313126754,1706779842718,-500.0,0.00030803,2]
[313126756,1706779842728,-500.0,0.00030803,2]
[313126758,1706779842739,-500.0,0.00030803,2]
[313126759,1706779842749,-500.0,0.00030803,2]
[313126760,1706779842759,-500.0,0.00030803,2]
[313126761,1706779842770,-500.0,0.00030803,2]
[313126762,1706779842780,-500.0,0.00030803,2]
[313126764,1706779842791,-191.9464,0.00030803,2]
[313126766,1706779842802,-500.0,0.0003082,2]
[313126768,1706779842812,-200.0,0.00030857,2]
[313126770,1706779842822,-15149.3489,0.00030858,2]
[313126772,1706779842833,-500.0,0.00030875,2]
[313126774,1706779842843,-500.0,0.00030878,2]
[313126775,1706779842854,-162.83781801,0.000309,2]
[313126776,1706779842864,-216.13747036,0.000309,2]
[313126777,1706779842875,-154.17470869,0.000309,2]
[313126778,1706779842885,-800.0,0.000309,11]
[313126779,1706779842896,-500.0,0.0003093,2]
[313126780,1706779842907,-200.0,0.0003093,2]
[313126781,1706779842917,-150.01,0.00030957,2]
[313126782,1706779842928,-3306.75797983,0.00030957,2]
[313126783,1706779842939,-500.0,0.00030958,2]
[313126784,1706779842949,-500.0,0.00030962,2]
[313126785,1706779842960,-300.0,0.00030962,2]
[313126786,1706779842970,-500.0,0.00030962,2]
[313126787,1706779842980,-500.0,0.00030962,2]
[313126788,1706779842991,-500.0,0.00030962,2]
[313126789,1706779843002,-500.0,0.00030962,2]
[313126790,1706779843013,-500.0,0.00030962,2]
[313126791,1706779843024,-500.0,0.00030962,2]
[313126792,1706779843035,-500.0,0.00030962,2]
[313126793,1706779843046,-500.0,0.00030962,2]
[313126794,1706779843058,-1238.5667778,0.00030962,2]
[313126795,1706779843069,-5868.9781092,0.00030962,2]
[313126796,1706779843080,-16769.2972893,0.00030962,2]
[313126797,1706779843089,-235521.7227538,0.00030962,2]
[313126798,1706779843099,-30151.715926,0.00030962,2]
[313126799,1706779843108,-201.0,0.00030984,2]
[313126800,1706779843117,-500.0,0.00030984,2]
[313126801,1706779843126,-414.28243901,0.00030997,2]
[313126802,1706779843136,-500.0,0.00030999,2]
[313126803,1706779843146,-500.0,0.00030999,2]
[313126804,1706779843158,-604.0,0.00031,5]
[313126805,1706779843168,-5000.0,0.00031,2]
[313126806,1706779843418,-2010.82,0.00031,2]
[313126807,1706779843450,-200000.0,0.00031,5]
[313126808,1706779843466,-226.73196236,0.00031,2]
[313126809,1706779843475,-665.4835185,0.00031,2]
[313126810,1706779843486,-1011.0,0.00031,2]
[313126811,1706779843497,-598.0,0.00031,2]
[313126812,1706779843506,-200.0,0.00031002,2]
[313126813,1706779843515,-500.0,0.00031039,2]
[313126814,1706779843524,-153.87,0.0003105,2]
[313126815,1706779843534,-200.0,0.00031075,2]
[313126816,1706779843543,-263.4960052,0.00031084,4]
[313126817,1706779843553,-500.0,0.00031093,2]
[313126818,1706779843562,-297.16229779,0.00031147,4]
[313126819,1706779843571,-500.0,0.00031148,2]
[313126820,1706779843580,-200.0,0.00031148,2]
[313126821,1706779843589,-282.76704083,0.00031148,4]
[313126822,1706779843598,-4955.03804902,0.00031148,4]
[313126823,1706779843608,-150.1,0.000312,2]
[313126824,1706779843617,-199.38,0.00031221,2]
[313126825,1706779843627,-521.05,0.0003123,2]
[313126826,1706779843639,-500.0,0.0003123,2]
[313126827,1706779843648,-500.0,0.00031231,2]
[313126828,1706779843658,-500.0,0.00031231,7]
[313126829,1706779843667,-500.0,0.00031231,2]
[313126830,1706779843676,-516.17733142,0.00031231,2]
[313126831,1706779843685,-606.44,0.00031231,2]
[313126832,1706779843694,-500.0,0.00031231,2]
[313126833,1706779843703,-500.0,0.00031231,2]
[313126834,1706779843712,-500.0,0.00031231,2]
[313126835,1706779843721,-1540.6,0.00031231,2]
[313126836,1706779843730,-595.6,0.00031231,2]
[313126837,1706779843739,-500.0,0.00031231,2]
[313126838,1706779843748,-1338.46,0.00031231,2]
[313126839,1706779843757,-500.0,0.00031231,2]
[313126840,1706779843766,-500.0,0.00031231,2]
[313126841,1706779843775,-500.0,0.00031231,2]
[313126842,1706779843785,-500.0,0.00031231,2]
[313126843,1706779843794,-500.0,0.00031231,2]
[313126844,1706779843802,-500.0,0.00031231,2]
[313126845,1706779843811,-500.0,0.00031231,2]
[313126846,1706779843821,-2075.49,0.00031231,2]
[313126847,1706779843830,-717.31,0.00031231,2]
[313126848,1706779843839,-500.0,0.00031231,2]
[313126849,1706779843848,-585.86,0.00031231,2]
[313126850,1706779843857,-500.0,0.00031231,2]
[313126851,1706779843866,-500.0,0.00031231,2]
[313126852,1706779843875,-500.0,0.00031231,2]
[313126853,1706779843884,-593.9,0.00031231,2]
[313126854,1706779843893,-500.0,0.00031231,2]
[313126855,1706779843902,-500.0,0.00031231,2]
[313126856,1706779843912,-500.0,0.00031231,2]
[313126857,1706779843921,-500.0,0.00031231,2]
[313126858,1706779843931,-669.94,0.00031231,2]
[313126859,1706779843940,-500.0,0.00031231,2]
[313126860,1706779843949,-925.75,0.00031231,2]
[313126861,1706779843959,-500.0,0.00031231,2]
[313126862,1706779843970,-1433.23,0.00031231,2]
[313126863,1706779843980,-500.0,0.00031231,2]
[313126864,1706779843990,-500.0,0.00031231,2]
[313126865,1706779843999,-804.97,0.00031231,2]
[313126866,1706779844010,-500.0,0.00031231,2]
[313126867,1706779844019,-500.0,0.00031231,2]
[313126868,1706779844028,-657.73,0.00031231,2]
[313126869,1706779844039,-500.0,0.00031231,2]
[313126870,1706779844049,-500.0,0.00031231,2]
[313126871,1706779844059,-500.0,0.00031231,2]
[313126872,1706779844068,-500.0,0.00031231,2]
[313126873,1706779844077,-500.0,0.00031231,2]
[313126874,1706779844087,-1190.5,0.00031231,5]
[313126875,1706779844096,-500.0,0.00031231,2]
[313126876,1706779844105,-500.0,0.00031231,2]
[313126877,1706779844114,-500.0,0.00031231,2]
[313126878,1706779844123,-1208.78,0.00031231,2]
[313126879,1706779844134,-500.0,0.00031231,2]
[313126880,1706779844144,-625.73,0.00031231,2]
[313126881,1706779844154,-1305.5,0.00031231,2]
[313126882,1706779844163,-500.0,0.00031231,2]
[313126883,1706779844174,-500.0,0.00031231,2]
[313126884,1706779844183,-500.0,0.00031231,2]
[313126885,1706779844192,-534.07,0.00031231,2]
[313126886,1706779844201,-500.0,0.00031231,2]
[313126887,1706779844210,-500.0,0.00031231,2]
[313126888,1706779844218,-500.0,0.00031231,2]
[313126889,1706779844227,-701.92,0.00031231,2]
[313126890,1706779844236,-500.0,0.00031231,2]
[313126891,1706779844245,-500.0,0.00031231,2]
[313126892,1706779844254,-500.0,0.00031231,2]
[313126893,1706779844263,-627.26,0.00031231,2]
[313126894,1706779844272,-500.0,0.00031231,2]
[313126895,1706779844280,-500.0,0.00031231,2]
[313126896,1706779844289,-986.24,0.00031231,2]
[313126897,1706779844298,-500.0,0.00031231,2]
[313126898,1706779844307,-762.1,0.00031231,2]
[313126899,1706779844316,-655.35,0.00031231,5]
[313126900,1706779844326,-624.83,0.00031231,2]
[313126901,1706779844336,-795.63,0.00031231,2]
[313126902,1706779844346,-500.0,0.00031231,2]
[313126903,1706779844358,-500.0,0.00031231,2]
[313126904,1706779844370,-816.05,0.00031231,2]
[313126905,1706779844379,-557.84,0.00031231,2]
[313126906,1706779844389,-706.15,0.00031231,2]
[313126907,1706779844400,-500.0,0.00031231,2]
[313126908,1706779844409,-500.0,0.00031231,2]
[313126909,1706779844419,-616.28,0.00031232,2]
[313126910,1706779844428,-500.0,0.00031232,2]
[313126911,1706779844438,-987.61,0.00031232,2]
[313126912,1706779844448,-500.0,0.00031232,2]
[313126913,1706779844457,-500.0,0.00031232,2]
[313126914,1706779844467,-353.25077074,0.00031232,2]
[313126915,1706779844477,-213.97931451,0.00031232,2]
[313126916,1706779844486,-881.41,0.00031232,2]
[313126917,1706779844496,-500.0,0.00031232,2]
[313126918,1706779844505,-500.0,0.00031232,2]
[313126919,1706779844515,-888.7,0.00031232,2]
[313126920,1706779844525,-500.0,0.00031232,2]
[313126921,1706779844535,-8305.95,0.00031232,2]
[313126922,1706779844544,-651.09,0.00031232,2]
[313126923,1706779844553,-500.0,0.00031232,2]
[313126924,1706779844563,-1275.47,0.00031232,2]
[313126925,1706779844573,-2320.53,0.00031232,2]
[313126926,1706779844582,-500.0,0.00031232,2]
[313126927,1706779844590,-500.0,0.00031232,2]
[313126928,1706779844599,-969.56,0.00031232,2]
[313126929,1706779844609,-500.0,0.00031232,2]
[313126930,1706779844617,-500.0,0.00031232,2]
[313126931,1706779844626,-500.0,0.00031232,2]
[313126932,1706779844640,-500.0,0.00031232,2]